bitfinex/quotes_ETHUSD_20240709
["timestamp","ask_amount","ask_price","bid_price","bid_amount"]
[1720513443575,2.2978,3089.7,3088.8,3.23742]
[1720513443740,2.2978,3089.7,3089.1,1.683]
[1720513443741,0.20857979,3089.6,3089.1,1.683]
[1720513444126,2.2978,3089.7,3089.1,1.683]
[1720513445151,0.2085567,3089.6,3089.1,1.683]
[1720513445339,2.2978,3089.7,3089.1,1.683]
[1720513445547,0.20857365,3089.6,3089.1,1.683]
[1720513446566,0.20853564,3089.5,3089.1,1.683]
[1720513446772,2.2978,3089.7,3089.1,1.683]
[1720513446969,0.43835123,3089.6,3089.1,1.683]
[1720513447133,0.22978,3089.6,3089.1,1.683]
[1720513447332,0.20859561,3089.5,3089.1,1.683]
[1720513447831,0.22978,3089.6,3089.1,1.683]
[1720513448027,0.20865966,3089.5,3088.3,3.23797]
[1720513448235,0.46141766,3089.5,3088.7,1.683]
[1720513448560,0.20865966,3089.4,3088.7,1.683]
[1720513449856,0.252758,3089.5,3088.7,1.683]
[1720513450055,0.20865681,3089.4,3088.7,1.683]
[1720513450265,0.20867381,3089.3,3088.7,1.683]
[1720513450429,0.252758,3089.5,3088.7,1.683]
[1720513450636,0.20872587,3089.4,3088.7,1.683]
[1720513451035,3.0086,3089.3,3088.3,1.683]
[1720513451341,1.66015156,3089.2,3087.9,1.683]
[1720513451672,0.75872587,3089.1,3087.9,1.683]
[1720513451995,0.20872587,3089.0,3088.0,0.06476639]
[1720513452133,2.4586,3089.3,3088.4,3.23792]
[1720513452334,0.2087404,3089.2,3088.4,3.23792]
[1720513452537,0.2087404,3089.2,3088.3,4.92097]
[1720513452538,0.2087404,3089.2,3088.3,1.683]
[1720513453285,0.20887923,3089.1,3088.3,1.683]
[1720513453436,2.4826,3088.9,3088.3,1.683]
[1720513453777,0.20887923,3088.8,3087.9,1.683]
[1720513454069,0.20887923,3088.8,3087.9,4.92141]
[1720513454480,2.4826,3088.9,3087.9,4.92141]
[1720513454682,2.73086,3088.9,3087.9,4.92141]
[1720513454976,2.73086,3088.9,3087.9,1.683]
[1720513455362,0.20885906,3088.8,3087.9,1.683]
[1720513456450,2.4826,3088.9,3087.9,4.92138]
[1720513456789,0.20886176,3088.8,3087.9,4.92138]
[1720513457094,2.4826,3088.9,3087.9,4.92138]
[1720513457095,0.20890468,3088.7,3087.9,4.92138]
[1720513457278,2.73086,3088.9,3088.1,3.23823]
[1720513457584,2.4826,3088.9,3088.1,3.23823]
[1720513457936,2.3811,3089.4,3088.4,3.23786]
[1720513458135,0.208713,3089.3,3088.3,4.92094]
[1720513458576,0.208713,3089.3,3088.4,3.23786]
[1720513458779,0.208713,3089.3,3088.4,0.06475122]
[1720513458985,2.3811,3089.4,3088.8,3.23749]
[1720513459183,2.3811,3089.4,3088.9,3.23733]
[1720513459385,2.3811,3089.4,3088.0,3.0]
[1720513459386,0.3390268,3089.6,3089.1,4.92012]
[1720513459633,0.20856494,3089.5,3089.1,4.92011]
[1720513459955,0.3390268,3089.6,3089.1,4.92011]
[1720513460154,0.3390268,3089.6,3089.1,1.683]
[1720513460357,0.20854649,3089.5,3089.1,1.683]
[1720513460587,0.20854649,3089.5,3088.7,4.92055]
[1720513460790,0.20854649,3089.5,3088.7,1.683]
[1720513460993,0.20854649,3089.5,3088.7,4.92054]
[1720513461345,0.20854649,3089.5,3088.7,1.683]
[1720513462078,0.20854649,3089.5,3088.8,3.23747]
[1720513462387,0.20854649,3089.5,3088.7,1.683]
[1720513462744,0.3390268,3089.6,3088.7,1.683]
[1720513462943,0.20869963,3089.5,3088.8,3.23741]
[1720513463403,0.20869963,3089.5,3089.0,3.23729]
[1720513463570,0.20869963,3089.5,3088.8,3.23741]
[1720513463971,0.20869963,3089.5,3088.2,3.23806]
[1720513464159,2.4045,3089.4,3088.5,1.683]
[1720513464365,0.47001959,3089.3,3088.5,1.683]
[1720513464560,0.20869963,3089.2,3088.5,1.683]
[1720513464787,0.20869963,3089.1,3088.5,1.683]
[1720513464979,0.20869963,3089.0,3088.5,1.683]
[1720513465310,1.39090899,3089.3,3087.5,5.7359]
[1720513465311,2.3742,3088.8,3088.1,1.683]
[1720513465509,0.20869963,3088.7,3088.1,1.683]
[1720513465874,2.3742,3088.8,3088.3,3.23795]
[1720513466316,2.3742,3088.8,3088.1,1.683]
[1720513466695,0.20884432,3088.7,3088.1,4.92123]
[1720513467182,2.3742,3088.8,3088.1,4.92123]
[1720513467379,2.3742,3088.8,3088.1,1.683]
[1720513468528,2.61162,3088.8,3088.1,1.683]
[1720513468712,0.20888925,3088.7,3088.1,1.683]
[1720513469315,0.20898855,3088.6,3088.1,1.683]
[1720513469517,2.61162,3088.8,3088.1,1.683]
[1720513469518,0.20898855,3088.5,3088.1,1.683]
[1720513469725,0.20898855,3088.4,3088.1,1.683]
[1720513469884,0.20898855,3088.3,3088.1,1.683]
[1720513470086,0.261162,3088.7,3088.1,1.683]
[1720513470327,0.47258005,3088.6,3088.1,1.683]
[1720513470630,0.20904385,3088.5,3087.7,1.683]
[1720513471682,2.51014385,3088.4,3087.3,1.683]
[1720513472005,0.20904385,3088.3,3087.3,1.683]
[1720513472225,0.75904385,3088.3,3087.3,1.683]
[1720513472408,0.20923046,3088.2,3087.3,1.683]
[1720513472599,0.39817049,3088.1,3087.3,1.683]
[1720513472797,0.20923046,3088.0,3087.3,4.92206]
[1720513473117,2.3011,3088.4,3087.3,1.683]
[1720513473325,0.4873987,3088.3,3087.3,1.683]
[1720513473538,0.20917376,3088.2,3087.3,1.683]
[1720513474199,2.4064,3088.1,3087.3,1.683]
[1720513474399,0.27822494,3088.3,3086.5,3.23987]
[1720513474400,0.20920341,3088.0,3087.0,3.23934]
[1720513474599,2.4064,3088.6,3087.7,1.683]
[1720513474833,0.20904964,3088.5,3088.2,1.683]
[1720513475056,2.4064,3088.6,3088.2,1.683]
[1720513476144,2.4064,3088.6,3087.1,2.8044]
[1720513476145,2.64704,3088.6,3087.7,1.683]
[1720513477436,0.20901602,3088.5,3087.7,1.683]
[1720513477668,0.2856056,3088.4,3087.7,1.683]
[1720513478643,2.4064,3088.6,3087.7,1.683]
[1720513478847,2.4064,3088.6,3087.7,4.92157]
[1720513479503,2.4064,3088.6,3087.7,4.98633569]
[1720513480110,2.4064,3088.6,3087.7,4.92157]
[1720513481252,2.4064,3088.6,3087.7,4.98633563]
[1720513481455,2.4064,3088.6,3087.7,4.92157]
[1720513481751,2.64704,3088.6,3087.7,1.683]
[1720513481903,2.64704,3088.6,3087.7,4.92163]
[1720513482532,2.64704,3088.6,3087.7,1.683]
[1720513482733,0.20903524,3088.5,3087.7,1.683]
[1720513482928,0.28560752,3088.4,3087.7,1.683]
[1720513483549,2.4064,3088.6,3087.7,1.683]
[1720513483884,0.209013,3088.5,3087.7,1.683]
[1720513485136,2.4064,3088.6,3087.7,1.683]
[1720513486041,5.6338,3089.1,3088.1,1.683]
[1720513486236,0.20886517,3089.0,3088.1,4.98590817]
[1720513486465,0.20886517,3089.0,3088.1,1.74775817]
[1720513486665,0.20888388,3088.9,3088.1,4.98598817]
[1720513486973,5.6338,3089.1,3088.1,1.683]
[1720513487169,0.20888832,3089.0,3088.1,1.683]
[1720513487978,0.58426883,3088.9,3088.1,1.683]
[1720513488300,0.20888832,3088.8,3088.1,1.683]
[1720513488446,5.6338,3089.1,3088.1,1.74775818]
[1720513488645,0.20886644,3089.0,3088.1,1.74775818]
[1720513489478,0.20886644,3089.0,3088.1,1.683]
[1720513489801,0.58426664,3088.9,3087.7,1.683]
[1720513489983,0.20886644,3088.8,3087.7,4.92156]
[1720513491176,0.20886644,3088.8,3087.8,3.30330426]
[1720513491380,0.20886644,3088.8,3088.1,4.92123]
[1720513491582,5.6338,3089.1,3088.2,0.0647559]
[1720513491780,5.6338,3089.1,3088.3,3.23792]
[1720513491781,0.20882956,3089.0,3088.3,3.23792]
[1720513491994,0.20881079,3088.9,3088.3,6.47588]
[1720513492160,5.6338,3089.1,3088.3,3.23792]
[1720513492361,0.20878483,3089.0,3088.3,3.23792]
[1720513492904,0.20878483,3089.0,3088.4,3.23792]
[1720513493961,0.20878483,3089.0,3088.3,3.23793]
[1720513495110,3.23,3089.1,3088.3,3.23793]
[1720513495604,0.20878506,3089.0,3088.3,3.23793]
[1720513495771,3.23,3089.1,3088.2,3.23812]
[1720513495772,0.20878009,3088.9,3088.2,3.23812]
[1720513495971,0.20879006,3088.8,3088.2,3.23812]
[1720513496187,3.58690796,3089.1,3088.2,3.23812]
[1720513496498,0.20883998,3089.0,3088.2,3.23812]
[1720513496672,0.58841477,3089.0,3088.1,1.683]
[1720513496887,0.20883998,3088.9,3088.1,1.683]
[1720513497187,0.20883998,3088.8,3088.1,1.683]
[1720513498458,2.3427,3088.9,3088.1,1.683]
[1720513498666,0.20894066,3088.8,3088.1,1.683]
[1720513499571,0.20894066,3088.8,3087.7,1.683]
[1720513499795,0.55,3088.7,3087.7,1.683]
[1720513500107,0.20894066,3088.6,3087.7,1.683]
[1720513501203,0.20909294,3088.5,3087.7,1.683]
[1720513501387,0.20909294,3088.4,3087.7,1.683]
[1720513501714,0.20909294,3088.3,3087.7,1.683]
[1720513501876,0.16799864,3088.6,3087.7,1.683]
[1720513501877,0.20909294,3088.2,3087.7,1.683]
[1720513502201,0.20909294,3088.1,3087.7,1.683]
[1720513502446,0.16799864,3088.6,3087.7,1.683]
[1720513502647,0.20909983,3088.5,3087.7,1.683]
[1720513504124,0.16799864,3088.6,3087.7,4.92164]
[1720513504330,0.20903156,3088.5,3087.7,1.683]
[1720513504538,0.20903156,3088.4,3087.7,1.683]
[1720513504744,0.20902733,3088.3,3087.7,1.683]
[1720513504913,0.40678321,3088.7,3087.7,1.683]
[1720513505122,0.20902865,3088.6,3087.7,1.683]
[1720513505749,0.38359751,3088.6,3087.7,1.683]
[1720513505943,0.20902865,3088.5,3087.7,1.683]
[1720513506645,0.20902865,3088.5,3087.0,2.4107]
[1720513506833,0.75902865,3088.4,3087.4,1.683]
[1720513507038,0.20902865,3088.3,3087.4,1.683]
[1720513507353,0.20902865,3088.2,3087.8,1.683]
[1720513507658,0.40678321,3088.7,3087.8,4.92153]
[1720513507858,0.20887753,3088.6,3088.2,1.683]
[1720513508145,0.20884941,3088.5,3088.2,1.683]
[1720513508342,7.36,3088.8,3088.2,1.683]
[1720513508623,0.20887015,3088.7,3088.2,1.683]
[1720513508757,0.20887015,3088.7,3087.8,3.23844]
[1720513508758,0.20887015,3088.7,3087.8,1.683]
[1720513508966,1.33872067,3088.7,3087.8,1.683]
[1720513509693,2.3651,3088.6,3087.8,1.683]
[1720513509909,2.60090274,3088.5,3087.4,1.683]
[1720513510094,2.3651,3088.6,3087.4,1.683]
[1720513510095,1.33872067,3088.4,3087.4,1.683]
[1720513510305,0.20887015,3088.3,3087.4,1.683]
[1720513510500,0.20887015,3088.2,3087.4,1.683]
[1720513510672,0.20919752,3088.1,3087.4,1.683]
[1720513511016,0.20919752,3088.0,3087.4,1.683]
[1720513511225,0.20921808,3087.9,3087.4,1.683]
[1720513511375,0.20921808,3087.8,3087.4,1.683]
[1720513511572,0.20921808,3087.7,3087.4,1.683]
[1720513511776,0.46666359,3088.3,3087.4,1.683]
[1720513511777,0.20921808,3087.6,3087.4,1.683]
[1720513512001,0.20921808,3087.5,3087.4,1.683]
[1720513512431,7.36,3088.1,3087.0,1.683]
[1720513512432,2.3641,3087.8,3087.0,1.683]
[1720513512631,1.33955529,3087.7,3087.0,1.683]
[1720513513103,1.33955529,3087.7,3086.6,1.683]
[1720513513412,0.55,3087.6,3086.6,1.683]
[1720513513612,0.39817361,3087.5,3086.6,1.683]
[1720513513924,0.18895553,3087.5,3086.6,1.683]
[1720513514127,0.209499,3087.4,3086.6,1.683]
[1720513514314,0.55,3087.6,3086.6,1.683]
[1720513514315,0.75949746,3087.3,3086.6,1.683]
[1720513514513,0.20953203,3087.2,3086.6,1.683]
[1720513514739,0.20953203,3087.1,3086.6,1.683]
[1720513514937,0.20953203,3087.0,3086.6,1.683]
[1720513515144,1.68057188,3087.6,3086.6,1.683]
[1720513515145,0.20953203,3086.9,3086.6,1.683]
[1720513515356,1.13053557,3087.5,3086.6,1.683]
[1720513515653,1.45405356,3087.4,3086.6,1.683]
[1720513515802,0.2095231,3087.3,3086.6,1.683]
[1720513517101,1.45405356,3087.4,3086.6,1.683]
[1720513517317,0.20950247,3087.3,3086.6,1.683]
[1720513517745,0.20950247,3087.3,3086.2,1.683]
[1720513517954,2.2599,3087.1,3086.2,1.683]
[1720513518115,0.20950247,3087.0,3086.2,1.683]
[1720513519730,0.1663556,3087.2,3086.2,1.683]
[1720513519920,3.0,3087.5,3086.2,1.683]
[1720513520111,0.20951613,3087.4,3086.2,1.683]
[1720513520313,0.55,3087.3,3086.2,1.683]
[1720513520518,0.20951845,3087.2,3086.2,1.683]
[1720513520748,0.30012,3087.4,3086.2,4.92322]
[1720513520954,0.59453081,3087.3,3086.3,0.06479718]
[1720513521157,0.20951881,3087.2,3086.6,1.683]
[1720513521389,3.966,3088.0,3086.6,1.683]
[1720513521663,0.2093824,3087.8,3087.0,1.683]
[1720513521832,0.41753824,3087.8,3087.0,1.683]
[1720513522162,0.20937917,3087.7,3087.0,1.683]
[1720513522317,2.3422,3087.6,3086.3,3.0]
[1720513522518,0.20937917,3087.5,3086.2,1.683]
[1720513522818,0.25515792,3087.4,3086.2,1.683]
[1720513523031,0.75937917,3087.3,3086.2,1.683]
[1720513523351,2.2689,3087.1,3085.8,1.683]
[1720513523587,0.75937917,3087.0,3085.8,1.683]
[1720513523718,0.30282792,3086.9,3085.8,1.683]
[1720513524052,0.30282792,3086.9,3085.8,4.92363]
[1720513524261,2.2689,3087.1,3086.2,1.683]
[1720513525449,2.2689,3087.1,3086.2,4.92322]
[1720513525653,0.33928783,3087.3,3086.6,1.683]
[1720513526066,2.2577,3087.6,3086.6,4.92278]
[1720513526234,3.23,3088.0,3087.0,1.683]
[1720513526553,8.64477,3087.9,3087.0,1.683]
[1720513527123,8.64477,3087.9,3087.0,4.92236]
[1720513527405,8.64477,3087.9,3087.0,4.92231]
[1720513527820,8.64477,3087.9,3087.0,1.683]
[1720513528219,8.64477,3087.9,3086.6,4.0025]
[1720513528518,1.187477,3087.8,3086.7,3.23961]
[1720513528723,7.36,3087.9,3086.6,4.06728558]
[1720513528724,7.36,3087.9,3087.0,1.683]
[1720513528951,7.36,3087.9,3087.0,4.92236]
[1720513529320,7.36,3087.9,3087.0,4.98714195]
[1720513529656,3.23,3088.0,3087.3,3.23906]
[1720513530073,9.7813,3088.5,3087.4,4.98673522]
[1720513530249,15.908,3089.0,3087.8,1.683]
[1720513530250,2.4213,3088.9,3087.8,1.683]
[1720513530418,2.4213,3088.9,3088.2,1.683]
[1720513530419,1.30113,3088.9,3088.2,1.683]
[1720513530618,3.23,3089.0,3088.2,1.683]
[1720513530854,3.23,3089.0,3088.2,4.92107]
[1720513531062,3.23,3089.0,3088.2,8.15911]
[1720513531269,3.23,3089.0,3088.2,4.92104]
[1720513531474,3.23,3089.0,3088.2,1.683]
[1720513531682,7.36,3089.5,3088.6,1.683]
[1720513531883,7.36,3090.1,3088.8,3.23747]
[1720513532175,7.36,3090.1,3088.2,5.4018]
[1720513532176,0.20863609,3090.0,3089.4,1.683]
[1720513532382,2.3671,3090.4,3089.4,1.683]
[1720513532673,0.44522968,3090.3,3089.4,1.683]
[1720513532889,0.23671,3090.3,3089.4,1.683]
[1720513534841,3.23671,3090.3,3089.4,1.683]
[1720513536140,0.55,3090.2,3089.0,1.683]
[1720513536345,0.378671,3090.1,3089.0,1.683]
[1720513536576,0.55,3090.0,3089.0,1.683]
[1720513536777,0.55,3090.0,3088.6,1.683]
[1720513537148,3.968,3090.0,3088.6,1.683]
[1720513537349,3.418,3089.8,3088.6,1.683]
[1720513537581,0.55,3089.7,3088.6,1.683]
[1720513537960,0.55,3090.0,3088.6,1.683]
[1720513538441,3.968,3090.0,3088.6,1.683]
[1720513538649,0.55,3090.0,3088.6,1.683]
[1720513538869,0.3928671,3089.9,3088.6,1.683]
[1720513539055,0.55,3089.8,3088.6,4.92068]
[1720513539645,3.55,3090.1,3088.6,4.92068]
[1720513539949,3.55,3090.1,3088.7,3.2376]
[1720513540149,3.55,3090.1,3088.6,1.683]
[1720513540357,0.6968,3090.0,3088.6,4.92063]
[1720513540557,0.55,3089.9,3088.6,1.683]
[1720513541156,3.968,3089.9,3088.6,1.683]
[1720513541353,0.66128,3089.8,3088.6,1.683]
[1720513541558,0.55,3089.7,3088.6,1.683]
[1720513541965,0.66128,3089.8,3088.6,4.98542819]
[1720513542167,0.6968,3090.0,3088.7,3.23752]
[1720513542357,0.55,3089.9,3088.7,3.23756]
[1720513542559,0.55,3090.1,3088.6,1.683]
[1720513542888,0.55,3090.1,3088.6,4.92071]
[1720513543186,0.355,3090.0,3088.6,4.92071]
[1720513543548,0.55,3089.9,3088.6,8.15832]
[1720513543750,0.55,3089.9,3088.6,1.683]
[1720513545183,0.55,3089.9,3088.6,4.92069]
[1720513546576,0.55,3089.9,3088.6,4.98543349]
[1720513547411,0.355,3090.0,3089.0,1.683]
[1720513547883,0.355,3090.0,3088.6,1.683]
[1720513548098,0.88906391,3089.9,3088.6,1.683]
[1720513548286,2.3239,3089.8,3088.6,1.683]
[1720513548482,0.32129639,3089.7,3088.6,1.683]
[1720513550305,0.32129639,3089.7,3088.6,4.92069]
[1720513550678,0.32129639,3089.7,3088.6,1.683]
[1720513551103,0.32129639,3089.7,3088.6,4.9207]
[1720513551620,0.32129639,3089.7,3088.6,1.683]
[1720513551781,0.26451964,3089.6,3088.6,1.683]
[1720513554209,0.32129639,3089.7,3088.6,1.74774784]
[1720513554408,0.32129639,3089.7,3089.0,1.683]
[1720513556576,0.33906391,3089.9,3089.5,1.683]
[1720513556895,0.33906391,3089.9,3089.1,1.683]
[1720513557508,2.3729,3090.2,3089.1,1.683]
[1720513557717,2.3729,3090.2,3088.7,1.683]
[1720513557872,0.33906878,3089.8,3089.3,1.683]
[1720513559002,2.4698,3090.6,3089.3,1.74773265]
[1720513559316,0.33901929,3090.3,3089.3,1.74773265]
[1720513560709,0.33901929,3090.3,3089.4,3.23679]
[1720513560925,0.33901929,3090.3,3089.5,3.23676]
[1720513561102,2.4698,3090.6,3089.5,3.23676]
[1720513561327,0.98298,3090.5,3089.5,3.23676]
[1720513561531,2.4698,3090.6,3089.7,1.683]
[1720513561723,0.33900845,3090.7,3090.1,1.683]
[1720513562031,0.33900845,3090.7,3090.5,1.683]
[1720513562229,0.33900845,3090.7,3090.5,4.91865]
[1720513562452,7.36,3091.1,3090.5,4.91865]
[1720513562640,7.69892822,3091.1,3090.5,4.91865]
[1720513562844,7.36,3091.1,3090.9,1.683]
[1720513563042,7.36,3091.6,3090.9,1.683]
[1720513563330,7.36,3091.6,3090.5,1.683]
[1720513563658,0.3255,3092.4,3090.9,4.91822]
[1720513563814,0.3255,3092.4,3091.3,1.683]
[1720513564148,0.66437866,3092.3,3091.3,1.683]
[1720513565058,4.08237866,3092.3,3090.9,1.683]
[1720513565709,3.55,3092.2,3090.9,1.683]
[1720513565916,3.55,3092.2,3091.1,3.23508]
[1720513565917,3.0,3092.2,3091.1,3.23508]
[1720513566107,0.66437866,3092.3,3091.1,3.23508]
[1720513566308,0.66437866,3092.3,3090.9,4.91821]
[1720513566541,0.66437866,3092.3,3090.9,1.683]
[1720513566708,0.66437866,3092.3,3090.9,4.9183]
[1720513567031,0.66437866,3092.3,3091.3,1.683]
[1720513567394,0.66437866,3092.3,3091.3,1.74768532]
[1720513568001,0.66437866,3092.3,3091.3,1.683]
[1720513568430,2.3429,3092.2,3090.6,2.4308]
[1720513568618,0.30072787,3092.1,3090.7,1.683]
[1720513569014,0.55,3092.0,3090.7,1.683]
[1720513569419,3.968,3092.0,3090.7,1.683]
[1720513569629,6.418,3091.9,3090.7,1.683]
[1720513569910,2.3429,3091.7,3090.7,1.683]
[1720513570137,5.3429,3091.7,3090.7,1.683]
[1720513570303,0.55,3091.6,3090.7,1.683]
[1720513570502,0.55,3091.6,3089.9,8.90334]
[1720513570503,3.78,3091.6,3090.3,1.683]
[1720513570706,7.00729,3091.5,3090.0,2.242]
[1720513571008,0.55,3091.4,3090.0,2.242]
[1720513571828,3.418,3091.3,3090.0,2.242]
[1720513572033,4.1416,3091.2,3089.5,3.0]
[1720513572232,3.418,3091.0,3088.9,2.242]
[1720513572469,3.418,3090.8,3088.9,5.47934]
[1720513572613,3.418,3090.6,3088.9,2.242]
[1720513572951,6.648,3090.6,3088.9,2.242]
[1720513573134,2.4141,3090.3,3088.9,2.242]
[1720513573322,0.58321,3090.2,3088.4,5.47987]
[1720513573519,3.968,3090.2,3088.4,2.242]
[1720513573722,3.968,3090.2,3088.1,2.2836]
[1720513573723,6.418,3090.1,3088.1,2.2836]
[1720513573935,0.55,3090.0,3088.2,3.23803]
[1720513574113,1.4416,3090.0,3088.2,6.47606]
[1720513574309,1.4416,3090.0,3088.3,0.0647476]
[1720513574548,0.55,3090.0,3088.5,3.23781]
[1720513574851,3.0,3090.2,3088.4,2.242]
[1720513574852,0.55,3090.1,3088.4,2.242]
[1720513575058,0.355,3090.0,3088.4,2.242]
[1720513575351,0.75879935,3089.9,3088.4,2.242]
[1720513575642,0.20879935,3089.8,3088.4,2.242]
[1720513576049,0.55,3089.7,3088.4,2.242]
[1720513576255,0.20889341,3089.6,3088.4,2.242]
[1720513576457,0.20889341,3089.6,3088.0,3.23824]
[1720513576662,0.55,3089.7,3088.1,3.23822]
[1720513576965,0.355,3089.7,3088.4,5.47985]
[1720513577112,0.355,3089.7,3088.5,0.06474272]
[1720513577313,3.0,3090.2,3088.7,3.23759]
[1720513577554,2.4141,3090.3,3088.8,3.30221831]
[1720513577866,2.4141,3090.3,3088.9,3.30210263]
[1720513578662,0.2086368,3090.2,3088.5,5.60685]
[1720513578820,0.26227368,3090.1,3088.5,5.60685]
[1720513579016,0.26227368,3090.1,3088.4,2.242]
[1720513579354,0.54785186,3090.0,3088.4,2.242]
[1720513579653,2.2822,3089.8,3088.4,2.242]
[1720513579817,0.55,3089.7,3088.4,2.242]
[1720513580014,0.28322,3089.6,3088.4,2.242]
[1720513580446,2.2822,3089.8,3088.5,3.30247955]
[1720513580754,2.2822,3089.8,3088.5,3.23773]
[1720513580973,3.0,3089.9,3088.5,3.23773]
[1720513580974,3.0,3089.9,3088.8,3.2374]
[1720513581550,3.0,3089.9,3088.5,3.30250035]
[1720513581753,4.09613347,3089.9,3088.7,3.23756]
[1720513582409,4.09613347,3089.9,3088.5,3.23776]
[1720513582814,4.09613347,3089.9,3088.5,6.54023017]
[1720513583014,4.09613347,3089.9,3088.5,3.23773]
[1720513583239,1.17951945,3089.8,3088.5,3.23773]
[1720513583445,1.17951945,3089.8,3088.5,3.30247018]
[1720513583849,1.17951945,3089.8,3088.4,2.242]
[1720513584073,5.6958,3089.6,3087.9,2.242]
[1720513584277,0.20891457,3089.5,3087.4,4.5203]
[1720513584448,0.20891457,3089.5,3087.4,7.75926]
[1720513584449,7.80149457,3089.5,3087.4,7.75926]
[1720513584639,0.20891457,3089.4,3087.4,7.75926]
[1720513585000,5.9098,3089.2,3087.4,2.242]
[1720513585135,0.75891457,3089.1,3087.4,2.242]
[1720513585332,0.20891457,3089.0,3087.4,2.242]
[1720513585537,0.55,3088.9,3087.4,2.242]
[1720513586178,0.20920993,3088.8,3086.9,5.48147]
[1720513586481,5.05378,3089.0,3086.9,5.48147]
[1720513586685,3.20919684,3088.9,3087.1,3.23927]
[1720513586837,0.55,3088.8,3087.1,3.23927]
[1720513587040,0.37591968,3088.7,3087.1,3.23927]
[1720513587266,0.55,3088.6,3087.1,3.23927]
[1720513587538,0.55,3088.6,3087.1,3.23919]
[1720513587949,2.4603,3088.5,3086.9,2.242]
[1720513588152,0.85103,3088.4,3086.9,5.242]
[1720513588369,0.85103,3088.4,3086.9,2.242]
[1720513588683,3.85103,3088.4,3086.9,2.242]
[1720513588837,0.85103,3088.4,3086.9,2.242]
[1720513589040,4.047133,3088.3,3086.4,2.242]
[1720513589551,3.55,3088.2,3086.4,2.242]
[1720513589739,3.55,3088.2,3086.4,5.48201]
[1720513590473,3.55,3088.2,3086.5,3.23991]
[1720513590841,0.55,3088.2,3086.5,3.23991]
[1720513591173,0.55,3088.2,3086.7,3.23968]
[1720513593061,0.55,3088.2,3086.4,2.242]
[1720513593376,2.3891,3088.1,3086.7,3.23968]
[1720513593538,0.29391,3088.0,3086.7,3.23968]
[1720513593943,3.29391,3088.0,3086.7,3.23968]
[1720513594456,3.29391,3088.0,3086.4,2.242]
[1720513594779,0.88895527,3087.9,3086.4,2.242]
[1720513594944,2.4395,3087.8,3086.2,3.24017]
[1720513595275,5.85778653,3087.8,3086.2,3.24017]
[1720513595477,0.55,3087.7,3086.0,3.24037]
[1720513595773,3.55,3087.7,3086.0,3.24037]
[1720513595977,0.64077865,3087.6,3086.0,3.24037]
[1720513596284,0.64077865,3087.6,3085.9,2.242]
[1720513596477,0.55,3087.5,3085.9,8.54726265]
[1720513596681,0.55,3087.5,3086.0,3.24043]
[1720513596867,0.64077865,3087.6,3086.3,3.24009]
[1720513597183,0.64077865,3087.6,3086.4,0.06478634]
[1720513597479,0.64077865,3087.6,3086.4,3.30478634]
[1720513597710,3.0,3087.7,3086.5,2.242]
[1720513598647,0.55,3087.6,3086.5,2.242]
[1720513599147,0.55,3087.6,3086.1,3.24026]
[1720513599756,2.495,3087.5,3086.0,2.242]
[1720513599963,5.495,3087.5,3086.0,5.48233]
[1720513600173,0.3045,3087.4,3086.0,2.242]
[1720513601146,3.3045,3087.4,3085.7,3.24071]
[1720513601391,0.57995,3087.3,3085.7,3.24071]
[1720513601780,0.57995,3087.3,3085.7,6.4814]
[1720513601978,0.57995,3087.3,3085.7,3.24069]
[1720513602179,0.57995,3087.3,3085.5,2.242]
[1720513602180,2.3336,3087.1,3085.5,2.242]
[1720513602375,5.3336,3087.1,3085.5,2.242]
[1720513602588,1.08336,3087.0,3085.5,2.242]
[1720513602790,2.4538,3086.9,3085.5,2.242]
[1720513603011,2.4538,3086.9,3085.0,2.242]
[1720513603012,0.55,3086.8,3085.0,2.242]
[1720513603218,3.55,3086.8,3085.2,3.24121]
[1720513604076,3.55,3086.8,3085.0,5.48339]
[1720513604330,5.7959,3086.6,3085.1,3.0]
[1720513604491,2.3799,3086.6,3085.0,5.48338]
[1720513604675,2.3799,3086.6,3085.1,6.24136]
[1720513604879,0.298028,3086.5,3085.1,3.0]
[1720513605079,0.298028,3086.5,3085.0,8.48347]
[1720513605317,0.298028,3086.5,3085.1,3.24136]
[1720513605512,0.298028,3086.5,3085.0,5.48347]
[1720513605712,0.2677928,3086.4,3085.0,8.7249]
[1720513606013,0.2677928,3086.4,3085.0,8.72483]
[1720513606215,0.2677928,3086.4,3085.1,3.24137]
[1720513606779,0.2677928,3086.4,3085.0,2.242]
[1720513606982,0.2677928,3086.4,3085.0,5.48347]
[1720513607213,0.2677928,3086.4,3085.0,2.242]
[1720513607214,2.3161,3086.2,3085.0,2.242]
[1720513608434,5.3161,3086.2,3084.7,3.2418]
[1720513609293,0.55,3086.1,3084.5,2.242]
[1720513609493,1.11428793,3086.1,3084.5,5.48401]
[1720513609719,2.3215,3086.0,3084.5,5.48401]
[1720513609923,2.66057749,3086.0,3084.5,5.48401]
[1720513610125,0.37748654,3085.9,3084.5,2.242]
[1720513610326,0.92748654,3085.9,3084.5,2.242]
[1720513611229,2.3215,3085.8,3084.5,2.242]